bitfinex-derivatives/quotes_SOLF0:USTF0_20240816
["timestamp","ask_amount","ask_price","bid_price","bid_amount"]
[1723841485848,8.1639,141.04,141.0,3.5447]
[1723841486049,3.5439,141.04,141.0,3.5447]
[1723841486352,0.05091452,141.03,141.01,0.04545504]
[1723841489564,0.05091452,141.03,141.02,3.5443]
[1723841489851,0.05091452,141.03,141.01,27.28545504]
[1723841491760,0.05091452,141.03,141.01,30.82985504]
[1723841492254,0.05091452,141.03,141.01,27.28545504]
[1723841492448,0.05091452,141.03,141.01,0.04545504]
[1723841492644,6.07061452,141.03,140.95,27.24]
[1723841492847,3.545,141.0,140.95,30.7859]
[1723841493453,3.545,141.0,140.96,3.5458]
[1723841493856,3.545,141.0,140.95,27.24]
[1723841493857,7.15310549,140.99,140.97,0.04975373]
[1723841494062,3.5965294,140.99,140.97,0.04975373]
[1723841494652,7.21728697,140.99,140.97,0.04975373]
[1723841494846,1.34,141.06,140.98,27.24]
[1723841495050,1.34,141.06,141.01,27.24]
[1723841495051,4.81218275,141.06,141.01,27.24]
[1723841495457,3.5437,141.05,141.01,30.7845]
[1723841495962,0.04671154,141.04,141.02,0.04729218]
[1723841497052,7.101,141.01,140.92,27.24]
[1723841497250,5.9191,141.0,140.92,27.24]
[1723841497459,33.1591,141.0,140.92,27.24]
[1723841497656,33.1591,141.0,140.9,27.24]
[1723841497848,3.546,140.96,140.91,3.547]
[1723841498068,3.56954816,140.95,140.92,0.05154252]
[1723841498266,0.04988977,140.95,140.92,27.29154252]
[1723841498558,0.04988977,140.95,140.94,3.5463]
[1723841499248,0.04988977,140.95,140.94,30.7863]
[1723841500451,0.04988977,140.95,140.94,27.24]
[1723841500657,0.04988977,140.95,140.92,0.05154252]
[1723841501068,11.721,140.94,140.81,4.9074]
[1723841501255,3.5473,140.91,140.85,27.24]
[1723841501458,4.62,140.9,140.87,3.5481]
[1723841502262,4.62,140.9,140.87,3.59861892]
[1723841502263,4.67043971,140.9,140.87,3.59861892]
[1723841502452,4.67043971,140.9,140.88,3.5478]
[1723841502657,0.05043971,140.9,140.89,27.24]
[1723841503768,0.05043971,140.9,140.89,30.7876]
[1723841503968,0.05043971,140.9,140.89,37.6276]
[1723841504471,8.4877,140.97,140.91,3.547]
[1723841504660,4.62,140.96,140.91,34.08]
[1723841505170,4.62,140.96,140.92,3.5467]
[1723841505470,1.3867,140.97,140.91,34.08]
[1723841505670,0.05221325,140.95,140.93,0.05123381]
[1723841507770,3.5463,140.94,140.93,0.05123381]
[1723841509162,4.67221325,140.95,140.93,0.05123381]
[1723841509369,0.05221325,140.95,140.93,0.05123381]
[1723841509564,0.05221325,140.95,140.93,3.59773381]
[1723841510265,0.05221325,140.95,140.94,3.5463]
[1723841510463,0.05221325,140.95,140.93,0.05123381]
[1723841511063,0.05221325,140.95,140.93,3.59763381]
[1723841511263,0.05221325,140.95,140.93,0.05123381]
[1723841512560,4.67221325,140.95,140.93,0.05123381]
[1723841513579,8.21841325,140.95,140.93,0.05123381]
[1723841513967,4.67221325,140.95,140.93,0.05123381]
[1723841518674,8.21841325,140.95,140.93,0.05123381]
[1723841518982,4.67221325,140.95,140.93,0.05123381]
[1723841519177,3.5463,140.94,140.93,0.05123381]
[1723841519679,6.2539,140.94,140.93,0.05123381]
[1723841524384,2.7076,140.94,140.85,4.62]
[1723841524676,2.7076,140.94,140.86,3.5482]
[1723841524677,1.3154,140.93,140.86,3.5482]
[1723841525380,3.59796847,140.91,140.88,0.05027547]
[1723841526887,0.05076847,140.91,140.88,0.05027547]
[1723841527384,3.59786847,140.91,140.88,0.05027547]
[1723841527682,3.59786847,140.91,140.88,27.32027547]
[1723841528382,0.05076847,140.91,140.88,0.05027547]
[1723841528576,4.67076847,140.91,140.88,0.05027547]
[1723841529068,3.5475,140.9,140.88,0.05027547]
[1723841533378,8.21796847,140.91,140.88,0.05027547]
[1723841533781,0.05076847,140.91,140.88,30.86807547]
[1723841533986,0.05076847,140.91,140.88,0.05027547]
[1723841534186,5.9129,140.97,140.9,27.27]
[1723841534388,5.9129,140.97,140.93,27.27]
[1723841534582,3.5461,140.95,140.93,27.27]
[1723841534985,4.62,140.97,140.93,27.27]
[1723841535292,0.05160017,140.96,140.94,0.05095158]
[1723841535490,0.05160017,140.96,140.94,3.59715158]
[1723841537990,0.05160017,140.96,140.94,0.05095158]
[1723841538597,4.67160017,140.96,140.94,0.05095158]
[1723841539097,8.21760017,140.96,140.94,0.05095158]
[1723841547802,8.21760017,140.96,140.94,0.05095158]
[1723841548398,3.5461,140.95,140.94,0.05095158]
[1723841550201,4.67160017,140.96,140.9,27.27]
[1723841550507,9.8914,140.94,140.85,27.27]
[1723841550901,3.5475,140.9,140.85,27.27]
[1723841551105,8.1675,140.9,140.85,27.27]
[1723841551294,4.62,140.9,140.83,27.27]
[1723841551495,3.62590484,140.89,140.86,0.04752083]
[1723841551901,0.05154531,140.89,140.86,0.04752083]
[1723841552199,3.59924531,140.89,140.86,0.04752083]
[1723841552712,7.11824893,140.89,140.86,0.04752083]
[1723841552912,3.59924531,140.89,140.86,0.04752083]
[1723841553118,7.06750601,140.89,140.86,0.04752083]
[1723841553501,3.59924531,140.89,140.86,0.04752083]
[1723841554109,3.5479,140.88,140.86,0.04752083]
[1723841555605,11.71011671,140.88,140.86,0.04752083]
[1723841555800,8.16221671,140.88,140.77,1.005]
[1723841556015,1.3561,140.87,140.79,27.27]
[1723841556311,3.5488,140.85,140.8,3.5497]
[1723841556498,4.62,140.84,140.8,3.5497]
[1723841556900,0.05137604,140.83,140.81,0.04678991]
[1723841557515,0.05137604,140.83,140.81,30.86638991]
[1723841557708,0.05137604,140.83,140.81,27.31678991]
[1723841558308,0.05137604,140.83,140.81,30.86628991]
[1723841559308,0.05137604,140.83,140.81,27.31678991]
[1723841559916,3.60067604,140.83,140.81,27.31678991]
[1723841560615,3.5494,140.82,140.81,0.04678991]
[1723841566317,3.60057604,140.83,140.81,0.04678991]
[1723841566814,3.60057604,140.83,140.81,3.59628991]
[1723841567017,0.05137604,140.83,140.82,27.27]
[1723841570524,0.05137604,140.83,140.82,30.8194]
[1723841572628,0.05137604,140.83,140.82,3.5494]
[1723841573829,0.05137604,140.83,140.81,3.59628991]
[1723841575933,0.05137604,140.83,140.82,30.8194]
[1723841579829,0.05137604,140.83,140.82,14.4494]
[1723841580432,0.05137604,140.83,140.82,3.5494]
[1723841582634,0.05137604,140.83,140.82,14.4494]
[1723841589331,0.05137604,140.83,140.81,0.04678991]
[1723841589533,4.67137604,140.83,140.81,0.04678991]
[1723841590139,3.5494,140.82,140.81,0.04678991]
[1723841591435,8.1694,140.82,140.81,0.04678991]
[1723841592342,13.41647509,140.82,140.81,0.04678991]
[1723841592737,13.41646098,140.82,140.81,0.04678991]
[1723841593432,5.24706098,140.82,140.81,0.04678991]
[1723841593633,5.24706098,140.82,140.81,10.94678991]
[1723841596743,9.59727604,140.83,140.81,10.94678991]
[1723841596940,5.24962526,140.82,140.81,10.94678991]
[1723841597535,0.05137604,140.83,140.81,10.94678991]
[1723841599144,0.05137604,140.83,140.81,0.04678991]
[1723841600338,3.60057604,140.83,140.81,0.04678991]
[1723841601541,0.05137604,140.83,140.81,0.04678991]
[1723841602145,3.60047604,140.83,140.81,0.04678991]
[1723841602549,0.05137604,140.83,140.81,0.04678991]
[1723841603347,3.60047604,140.83,140.81,0.04678991]
[1723841606342,5.2487473,140.82,140.81,0.04678991]
[1723841606751,8.7981473,140.82,140.81,0.04678991]
[1723841606952,8.79812693,140.82,140.81,0.04678991]
[1723841607455,10.17942693,140.82,140.81,0.04678991]
[1723841609460,10.1773451,140.82,140.81,0.04678991]
[1723841611260,6.6279451,140.82,140.81,0.04678991]
[1723841611859,10.1773451,140.82,140.81,0.04678991]
[1723841613465,4.9307,140.82,140.81,0.04678991]
[1723841613960,10.17811167,140.82,140.81,0.04678991]
[1723841614168,4.9307,140.82,140.81,0.04678991]
[1723841614459,10.17828868,140.82,140.81,0.04678991]
[1723841616257,6.62888868,140.82,140.81,0.04678991]
[1723841617660,5.24758868,140.82,140.81,0.04678991]
[1723841620564,5.24758868,140.82,140.81,10.94678991]
[1723841621066,5.24758868,140.82,140.81,14.49638991]
[1723841621588,0.05137604,140.83,140.81,14.49638991]
[1723841621767,5.24980989,140.82,140.81,3.59638991]
[1723841623268,5.24980989,140.82,140.81,0.04678991]
[1723841625267,16.14980989,140.82,140.77,1.005]
[1723841625473,10.9,140.78,140.77,1.005]
[1723841625657,16.14980989,140.78,140.71,1.005]
[1723841625861,10.9,140.76,140.71,1.005]
[1723841626065,8.80260703,140.75,140.71,4.557]
[1723841626287,10.9,140.75,140.71,1.005]
[1723841626466,5.29742244,140.74,140.72,0.04716606]
[1723841626671,5.25068304,140.73,140.72,0.04716606]
[1723841628170,8.80228304,140.73,140.72,0.04716606]
[1723841628768,13.42228304,140.73,140.72,0.04716606]
[1723841629269,24.32228304,140.73,140.72,0.04716606]
[1723841630166,24.31947295,140.73,140.72,0.04716606]
[1723841632959,13.41947295,140.73,140.72,0.04716606]
[1723841634010,13.41670142,140.73,140.72,0.04716606]
[1723841634271,8.1716,140.73,140.72,0.04716606]
[1723841634474,13.41666914,140.73,140.72,0.04716606]
[1723841634871,9.86506914,140.73,140.72,0.04716606]
[1723841635071,5.24506914,140.73,140.72,0.04716606]
[1723841635276,6.0291394,140.74,140.72,0.04716606]
[1723841635979,0.0467394,140.74,140.72,3.59906606]
[1723841636472,0.0467394,140.74,140.73,10.9]
[1723841636879,0.0467394,140.74,140.72,14.49906606]
[1723841637076,2.6366,140.78,140.64,5.625]
[1723841637276,10.9,140.69,140.64,1.005]
[1723841637476,3.553,140.68,140.64,1.005]
[1723841637777,14.49477027,140.69,140.64,1.005]
[1723841638167,5.29310375,140.68,140.65,0.03336187]
[1723841638375,0.04826961,140.68,140.65,0.03336187]
[1723841638572,3.5534,140.66,140.65,0.03336187]
[1723841643682,3.5533,140.67,140.65,0.03336187]
[1723841645484,3.5534,140.66,140.65,0.03336187]
[1723841654788,3.5533,140.67,140.65,0.03336187]
[1723841655191,0.04826961,140.68,140.65,0.03336187]
[1723841655585,3.5534,140.67,140.65,0.03336187]
[1723841655800,0.04826961,140.68,140.65,0.03336187]
[1723841656312,3.5532,140.67,140.65,0.03336187]
[1723841657411,0.04826961,140.68,140.65,3.58696187]
[1723841657607,0.04826961,140.68,140.65,0.03336187]
[1723841657809,3.60126961,140.68,140.65,0.03336187]
[1723841657998,0.04826961,140.68,140.65,0.03336187]
[1723841658907,3.60126961,140.68,140.65,0.03336187]
[1723841659910,0.04826961,140.68,140.65,0.03336187]
[1723841660108,0.04826961,140.68,140.65,3.58696187]
[1723841660313,0.04826961,140.68,140.65,0.03336187]
[1723841660813,3.60136961,140.68,140.65,0.03336187]
[1723841662315,0.04826961,140.68,140.65,0.03336187]
[1723841663199,3.60126961,140.68,140.65,3.58686187]
[1723841663905,0.04826961,140.68,140.66,14.4633]
[1723841664711,0.04826961,140.68,140.67,3.5532]
[1723841664916,0.04826961,140.68,140.67,14.4632]
[1723841665109,0.04826961,140.68,140.67,10.91]
[1723841665314,0.04826961,140.68,140.66,10.91]
[1723841666515,0.04826961,140.68,140.67,3.5532]
[1723841667110,4.6,140.71,140.67,10.91]
[1723841667308,3.552,140.72,140.69,14.4626]
[1723841667826,8.12862708,140.74,140.69,10.91]
[1723841668316,0.05430986,140.73,140.7,0.04536547]
[1723841668710,0.05430986,140.73,140.71,10.91]
[1723841669313,0.05430986,140.73,140.72,3.5519]
[1723841669520,0.05430986,140.73,140.72,14.4619]
[1723841670112,10.91,140.79,140.75,3.5509]
[1723841670425,3.5512,140.75,140.71,10.91]
[1723841670621,3.5512,140.75,140.72,3.5517]
[1723841671318,0.04546009,140.75,140.73,3.5515]
[1723841671519,0.04546009,140.75,140.73,10.91]
[1723841672020,0.04546009,140.75,140.74,3.5514]
[1723841672225,0.04546009,140.75,140.73,10.91]
[1723841672523,0.04546009,140.75,140.73,14.4615]
[1723841673130,0.04546009,140.75,140.74,3.5514]
[1723841674225,0.04546009,140.75,140.74,14.4614]
[1723841676018,4.6,140.8,140.74,10.91]
[1723841676237,15.51,140.83,140.77,10.91]
[1723841676526,5.25103116,140.82,140.77,10.91]
[1723841676715,5.25103116,140.81,140.77,10.91]
[1723841676916,3.55,140.8,140.77,14.4605]
[1723841677120,3.59844553,140.8,140.77,14.51354556]
[1723841677728,0.04844553,140.8,140.77,14.51354556]
[1723841679825,3.59834553,140.8,140.77,14.51354556]
[1723841680131,0.04844553,140.8,140.77,14.51354556]
[1723841681415,3.59834553,140.8,140.79,10.91]
[1723841681619,3.59834553,140.8,140.77,10.96304556]
[1723841682030,0.04844553,140.8,140.77,14.51354556]
[1723841682234,0.04844553,140.8,140.77,10.96304556]
[1723841683430,0.04844553,140.8,140.77,14.51364556]
[1723841684833,0.04844553,140.8,140.78,3.5503]
[1723841686226,0.04844553,140.8,140.77,0.05304556]
[1723841687629,3.5503,140.79,140.77,0.05304556]
[1723841688832,3.59834553,140.8,140.77,10.96304556]
[1723841689535,0.04844553,140.8,140.77,10.96304556]
[1723841689838,3.59844553,140.8,140.77,10.96304556]
[1723841692741,5.25669158,140.79,140.77,10.96304556]
[1723841693037,3.59844553,140.8,140.77,10.96304556]
[1723841693336,5.25980401,140.79,140.77,14.51354556]
[1723841693535,0.04844553,140.8,140.77,14.51354556]
[1723841693738,5.26151499,140.79,140.77,14.51354556]
[1723841693923,3.59834553,140.8,140.77,10.96304556]
[1723841694323,5.26251963,140.79,140.77,10.96304556]
[1723841694536,3.59834553,140.8,140.77,10.96304556]
[1723841694832,5.26423414,140.79,140.77,10.96304556]
[1723841695038,3.59834553,140.8,140.77,10.96304556]
[1723841695433,5.26419704,140.79,140.77,10.96304556]
[1723841695646,3.59834553,140.8,140.77,10.96304556]
[1723841695829,5.26428013,140.79,140.77,10.96304556]
[1723841696030,3.59834553,140.8,140.77,10.96304556]
[1723841696330,5.26458909,140.79,140.77,14.51364556]
[1723841696533,0.04844553,140.8,140.78,10.91]
[1723841696744,0.04844553,140.8,140.77,0.05304556]
[1723841696745,0.04844553,140.8,140.79,10.91]
[1723841697440,0.04844553,140.8,140.79,14.4601]
[1723841697636,0.04844553,140.8,140.79,10.91]
[1723841698025,0.04844553,140.8,140.79,14.4601]
[1723841699041,0.04844553,140.8,140.79,3.5501]
[1723841699241,0.04844553,140.8,140.79,14.4601]
[1723841702739,4.6,140.86,140.79,10.91]
[1723841702943,16.17371067,140.85,140.74,51.76814622]
[1723841703245,5.26371067,140.84,140.81,10.91]
[1723841703447,4.6,140.86,140.81,10.91]
[1723841703942,0.04993142,140.85,140.82,0.05040747]
[1723841704345,3.549,140.84,140.82,0.05040747]
[1723841704647,0.04993142,140.85,140.82,0.05040747]
[1723841705044,3.5491,140.83,140.82,0.05040747]
[1723841705549,3.549,140.84,140.82,0.05040747]
[1723841707152,3.549,140.84,140.82,10.96040747]
[1723841710146,0.04993142,140.85,140.83,10.91]
[1723841710541,0.04993142,140.85,140.82,10.96040747]
[1723841710746,3.59873142,140.85,140.82,10.96040747]
[1723841711143,3.59873142,140.85,140.82,14.50980747]
[1723841712540,0.04993142,140.85,140.82,0.05040747]
[1723841712744,10.91,140.84,140.82,0.05040747]
[1723841713044,1.317,140.83,140.82,0.05040747]
[1723841713641,4.8661,140.83,140.82,0.05040747]
[1723841714360,1.317,140.83,140.79,10.26040747]
[1723841715439,3.60323439,140.82,140.8,0.05014708]
[1723841716754,0.05383439,140.82,140.8,0.05014708]
[1723841716954,0.05383439,140.82,140.81,10.91]
[1723841717958,3.60323439,140.82,140.8,10.96014708]
[1723841718367,0.05383439,140.82,140.8,10.96014708]
[1723841720460,0.05383439,140.82,140.81,10.91]
[1723841721155,0.05383439,140.82,140.81,14.4596]
[1723841721545,0.05383439,140.82,140.81,10.91]
[1723841723553,0.05383439,140.82,140.81,14.4596]
[1723841723961,7.105,140.91,140.81,54.55]
[1723841724161,7.105,140.91,140.88,10.91]
[1723841724755,3.55686399,140.9,140.88,10.91]
[1723841724957,7.105,140.91,140.88,10.91]
[1723841725260,3.5476,140.89,140.88,10.95781233]
[1723841726663,0.05002574,140.9,140.88,10.95781233]
[1723841726859,0.05002574,140.9,140.89,10.91]
[1723841728457,3.5464,140.94,140.89,10.91]
[1723841728661,3.5464,140.94,140.92,10.91]
[1723841729163,3.51393041,140.95,140.92,10.91]
[1723841729359,4.6,140.96,140.94,10.91]
[1723841729552,3.59274593,140.95,140.94,10.91]
[1723841729950,0.04654593,140.95,140.92,0.04841799]
[1723841730159,10.91,140.93,140.85,10.91]
[1723841730355,10.91,140.9,140.85,10.91]
[1723841730561,3.5484,140.86,140.83,10.91]
[1723841731264,3.5484,140.86,140.83,14.4591]
[1723841731568,3.59332706,140.86,140.83,10.95928985]
[1723841731957,3.59332706,140.86,140.83,27.29928985]
[1723841732263,0.04492706,140.86,140.83,0.04928985]
[1723841733265,3.5489,140.84,140.83,0.04928985]
[1723841736459,31.89492706,140.86,140.76,1.3953]
[1723841736660,2.6129,140.85,140.76,27.25]
[1723841736857,2.6129,140.85,140.76,30.8007]
[1723841737163,2.6129,140.85,140.76,27.25]
[1723841740569,3.5501,140.8,140.79,0.05039962]
[1723841740770,4.64794118,140.82,140.79,27.30039962]
[1723841740966,0.04794118,140.82,140.79,27.30039962]
[1723841741365,3.59744118,140.82,140.79,27.30039962]
[1723841742267,0.04794118,140.82,140.79,0.05039962]
[1723841742776,3.5499,140.8,140.79,0.05039962]
[1723841743159,3.5512,140.75,140.72,27.25]
[1723841743362,1.2834,140.79,140.72,27.25]
[1723841743967,3.551,140.76,140.72,30.8017]
[1723841744369,0.05272843,140.75,140.73,0.04941712]
[1723841747867,0.05272843,140.75,140.73,3.60101712]
[1723841748572,0.05272843,140.75,140.73,0.04941712]
[1723841749172,3.5514,140.74,140.73,0.04941712]
[1723841752476,3.5523,140.71,140.67,3.553]
[1723841752675,4.6,140.71,140.66,27.25]
[1723841752974,4.6,140.71,140.68,3.5529]
[1723841753581,4.65277063,140.71,140.68,3.60085901]
[1723841753881,3.5526,140.69,140.68,0.04795901]
[1723841755071,8.1526,140.69,140.68,0.04795901]
[1723841755771,3.5526,140.69,140.68,0.04795901]
[1723841755977,8.1526,140.69,140.68,0.04795901]
[1723841757271,3.5526,140.69,140.68,0.04795901]
[1723841757476,8.1526,140.69,140.68,0.04795901]
[1723841758667,4.6,140.69,140.68,0.04795901]
[1723841760575,3.5525,140.7,140.68,0.04795901]
[1723841760883,8.1525,140.7,140.68,0.04795901]
[1723841761282,3.5526,140.69,140.68,0.04795901]
[1723841766988,3.5533,140.67,140.64,1.005]
[1723841767287,4.6,140.66,140.64,1.005]
[1723841768186,4.65322777,140.66,140.64,1.04281603]
[1723841768683,4.65322777,140.66,140.64,4.59671603]
[1723841770690,4.65322777,140.66,140.65,3.5537]
[1723841771380,0.05322777,140.66,140.65,3.5537]
[1723841773491,0.05322777,140.66,140.64,28.29281603]
[1723841774577,0.05322777,140.66,140.64,1.04281603]
[1723841775684,3.5537,140.65,140.64,1.04281603]
[1723841776483,3.60672777,140.66,140.64,4.59671603]
[1723841777288,0.05322777,140.66,140.64,4.59671603]
[1723841777980,0.05322777,140.66,140.65,3.5537]
[1723841778386,0.05322777,140.66,140.64,1.04281603]
[1723841778882,3.60662777,140.66,140.64,1.04281603]
[1723841779291,0.05322777,140.66,140.64,1.04281603]
[1723841779595,4.6,140.65,140.64,1.04281603]
[1723841779785,8.1537,140.65,140.64,1.04281603]
[1723841781990,3.5544,140.62,140.57,1.005]
[1723841782193,4.6,140.65,140.59,3.555]
[1723841782590,3.5543,140.63,140.59,3.555]
[1723841782885,3.5543,140.63,140.6,3.5549]
[1723841783085,0.04563136,140.62,140.6,3.5549]
[1723841783286,0.04563136,140.62,140.57,1.005]
[1723841783588,3.60003136,140.62,140.59,3.555]
[1723841783895,0.04563136,140.62,140.57,1.005]
[1723841784691,3.60023136,140.62,140.59,3.5551]
[1723841786498,3.60023136,140.62,140.57,1.005]
[1723841786499,0.04563136,140.62,140.57,1.005]
[1723841786697,4.6,140.61,140.57,1.005]
[1723841787001,3.555,140.6,140.57,1.005]
[1723841787604,3.555,140.6,140.57,4.5604]
[1723841788096,8.1548,140.61,140.57,1.005]
[1723841788396,31.85,140.61,140.57,1.005]
[1723841788600,33.1418,140.61,140.57,1.005]
[1723841789597,3.5554,140.58,140.57,1.005]
[1723841790694,8.1554,140.58,140.57,1.005]
[1723841790890,3.5554,140.58,140.57,1.005]
[1723841791089,8.1554,140.58,140.57,1.005]
[1723841792194,4.6,140.58,140.57,1.005]
[1723841793595,8.1554,140.58,140.57,1.005]
[1723841795600,4.6,140.58,140.57,1.005]
[1723841796494,8.1554,140.58,140.57,1.005]
[1723841797099,4.6,140.58,140.57,1.005]
[1723841799899,8.1554,140.58,140.57,1.005]
[1723841800607,4.6,140.58,140.57,1.005]
[1723841801704,8.1554,140.58,140.57,1.005]
[1723841801905,4.6539598,140.59,140.57,1.005]
[1723841802809,4.6539598,140.59,140.57,4.5606]
[1723841803104,4.6539598,140.59,140.57,1.005]
[1723841804295,4.6539598,140.59,140.57,4.5607]
[1723841807015,0.0539598,140.59,140.57,4.5607]
[1723841807213,0.0539598,140.59,140.58,3.5554]
[1723841809401,0.0539598,140.59,140.57,4.5605]
[1723841811602,3.6091598,140.59,140.57,4.5605]
[1723841813917,3.6091598,140.59,140.57,1.005]
[1723841815112,0.0539598,140.59,140.57,4.5607]
[1723841818718,0.0539598,140.59,140.58,3.5554]
[1723841820019,0.0539598,140.59,140.57,4.5606]
[1723841820416,0.0539598,140.59,140.57,1.005]
[1723841820619,10.9839598,140.59,140.57,1.005]
[1723841821716,3.5554,140.58,140.57,1.005]
[1723841822821,3.6092598,140.59,140.57,1.005]
[1723841824023,3.5554,140.58,140.57,1.005]
[1723841825024,3.6092598,140.59,140.57,1.005]
[1723841825523,4.6,140.58,140.57,1.005]
[1723841827525,0.0539598,140.59,140.57,4.5607]
[1723841827830,4.6,140.58,140.57,4.5607]
[1723841833531,4.6,140.58,140.57,1.005]
[1723841833833,31.92,140.58,140.57,1.005]
[1723841834838,35.4754,140.58,140.57,1.005]
[1723841835337,4.6,140.58,140.57,1.005]
[1723841839549,8.1554,140.58,140.57,1.005]
[1723841843844,19.0854,140.58,140.57,1.005]
[1723841844539,4.6,140.58,140.57,1.005]
[1723841845742,8.1554,140.58,140.57,1.005]
[1723841847136,4.6,140.58,140.57,1.005]
[1723841847640,19.0854,140.58,140.57,1.005]
[1723841847947,15.53,140.58,140.57,1.005]
[1723841848849,19.0854,140.58,140.57,1.005]
[1723841858651,4.6,140.58,140.57,1.005]
[1723841859253,8.1554,140.58,140.57,1.005]
[1723841859752,4.6,140.58,140.57,1.005]
[1723841863859,0.0539598,140.59,140.57,1.005]
[1723841863860,0.0539598,140.59,140.57,4.5607]
[1723841864358,0.0539598,140.59,140.58,3.5554]
[1723841864756,0.0539598,140.59,140.57,1.005]
[1723841865351,10.93,140.58,140.57,1.005]
[1723841865758,14.4854,140.58,140.57,1.005]
[1723841865953,10.93,140.55,140.51,2.7324]
[1723841866460,0.04511953,140.54,140.52,3.5568]
[1723841866657,0.04511953,140.54,140.51,1.3385]
[1723841866960,0.04511953,140.54,140.52,3.5568]
[1723841867166,3.67288372,140.54,140.5,1.005]
[1723841867463,0.04511953,140.54,140.5,1.005]
[1723841868062,0.04511953,140.54,140.52,3.5571]
[1723841868262,0.04511953,140.54,140.5,1.005]
[1723841868463,0.04511953,140.54,140.51,3.5573]
[1723841868654,0.04511953,140.54,140.5,11.935]
[1723841869261,0.04511953,140.54,140.5,1.005]
[1723841869854,0.04511953,140.54,140.51,3.5572]
[1723841870760,0.04511953,140.54,140.5,1.005]
[1723841870964,10.93,140.53,140.5,1.005]
[1723841871160,4.6,140.52,140.5,1.005]
[1723841871554,8.1572,140.52,140.5,1.005]
[1723841872174,4.6,140.52,140.5,4.5626]
[1723841872357,0.04511953,140.54,140.5,1.005]
[1723841872553,4.64511953,140.54,140.5,11.935]
[1723841872952,4.64511953,140.54,140.52,3.557]
[1723841873651,4.64511953,140.54,140.5,11.935]
[1723841873956,4.64511953,140.54,140.53,3.5569]
[1723841875864,0.04511953,140.54,140.53,3.5569]
[1723841876261,4.6,140.57,140.56,3.5561]
[1723841876462,4.6,140.57,140.53,10.93]
[1723841876962,4.6,140.57,140.55,3.5563]
[1723841877468,4.65327093,140.57,140.56,3.5561]
[1723841877961,4.65327093,140.57,140.55,0.0456538]
[1723841878770,4.65327093,140.57,140.55,3.6018538]
[1723841880260,0.05327093,140.57,140.55,3.6018538]
[1723841881163,3.60917093,140.57,140.55,0.0456538]
[1723841881459,0.05327093,140.57,140.55,0.0456538]
[1723841882973,0.05327093,140.57,140.55,3.6018538]
[1723841883970,0.05327093,140.57,140.56,3.5561]
[1723841884266,0.05327093,140.57,140.56,14.4861]
[1723841887278,8.1549,140.61,140.58,3.5555]
[1723841888464,8.20690229,140.61,140.58,3.60305405]
[1723841889768,4.65200229,140.61,140.58,3.60305405]
[1723841891879,0.05200229,140.61,140.58,0.04755405]
[1723841892076,10.93,140.59,140.58,0.04755405]
[1723841892575,14.4853,140.59,140.58,0.04755405]
[1723841898767,10.93,140.59,140.58,0.04755405]
[1723841898969,3.5553,140.6,140.58,0.04755405]
[1723841899167,8.1553,140.6,140.58,0.04755405]
[1723841899776,4.6,140.6,140.58,0.04755405]
[1723841900378,4.6,140.6,140.58,3.60305405]
[1723841902286,4.6,140.6,140.58,0.04755405]
[1723841904188,4.6,140.6,140.58,3.60305405]
[1723841905584,4.6,140.6,140.59,3.5553]
[1723841905985,0.05200229,140.61,140.6,3.5551]
[1723841907885,0.05200229,140.61,140.6,14.4851]
[1723841910397,0.05200229,140.61,140.6,3.5551]
[1723841916907,0.05200229,140.61,140.58,0.04755405]
[1723841917306,0.05200229,140.61,140.58,3.60295405]
[1723841917505,3.60690229,140.61,140.58,3.60295405]
[1723841917914,0.05200229,140.61,140.58,0.04755405]
[1723841918212,3.5552,140.6,140.58,0.04755405]
[1723841922019,3.60680229,140.61,140.58,3.60305405]
[1723841923912,0.05200229,140.61,140.59,10.93]
[1723841924117,0.05200229,140.61,140.6,10.93]
[1723841925819,0.05200229,140.61,140.6,14.485]
[1723841926215,0.05200229,140.61,140.59,14.4852]
[1723841927621,3.60680229,140.61,140.58,3.60295405]
[1723841928422,3.60680229,140.61,140.59,3.5552]
[1723841930718,3.60680229,140.61,140.58,0.04755405]